fUST/lending_fUST_20260114
["ID","MTS","AMOUNT","RATE_DAILY","PERIOD"]
[401879410,1768393842091,-1500.0,0.00014368,2]
[401879411,1768393842103,-1191.8216104,0.00014368,2]
[401879412,1768393842113,-1500.0,0.00014368,2]
[401879413,1768393842124,-1003.76788333,0.00014368,2]
[401879414,1768393842133,-1022.04357159,0.00014368,2]
[401879415,1768393842143,-738.47106789,0.00014368,2]
[401879416,1768393842152,-1500.0,0.00014368,2]
[401879417,1768393842162,-100000.0,0.0001459,2]
[401879418,1768393842172,-665.99620392,0.00014795,2]
[401879419,1768393842182,-586.73306672,0.00014795,2]
[401879420,1768393842192,-1159.70838602,0.00014795,2]
[401879421,1768393842202,-1018.01129916,0.00014795,2]
[401879422,1768393842212,-1500.0,0.00014795,2]
[401879423,1768393842222,-927.69304459,0.00014795,2]
[401879424,1768393842233,-595.01188659,0.000149,2]
[401879425,1768393842243,-198.73989319,0.00014916,2]
[401879426,1768393842253,-1993.46298652,0.00014916,2]
[401879427,1768393842263,-2000.0,0.00014916,2]
[401879428,1768393842272,-1019.00256747,0.00015,2]
[401879429,1768393842283,-35775.62597585,0.00015,2]
[401879430,1768393842293,-1372.43724231,0.00015,3]
[401879431,1768393842303,-151.00724332,0.00015,2]
[401879432,1768393842313,-8932.61499355,0.00015,7]
[401879433,1768393842322,-2000.0,0.00015014,7]
[401879434,1768393842331,-712.833248,0.00015068,2]
[401879435,1768393842341,-992.62086011,0.00015342,2]
[401879436,1768393842351,-643.41340345,0.0001538,2]
[401879437,1768393842361,-4087.985734,0.00015383,2]
[401879438,1768393842371,-3629.73987498,0.00015393,2]
[401879439,1768393842380,-2500.0,0.00015464,2]
[401879440,1768393842390,-627.0019106,0.00015486,2]
[401879441,1768393842400,-746.81794895,0.00015604,2]
[401879442,1768393842410,-1000.0,0.00015778,2]
[401879443,1768393842421,-492.0,0.00015778,2]
[401879444,1768393842431,-5068.53434395,0.00015877,2]
[401879445,1768393842441,-215.88592206,0.00016,2]
[401879446,1768393842450,-3000.0,0.00016012,2]
[401879447,1768393842461,-2000.0,0.00016329,7]
[401879448,1768393842471,-500.0,0.00016438,2]
[401879449,1768393842481,-367.29391014,0.00016438,2]
[401879450,1768393842492,-500.0,0.00016438,2]
[401879451,1768393842502,-500.0,0.00016438,2]
[401879452,1768393842513,-500.0,0.00016438,2]
[401879453,1768393842523,-500.0,0.00016438,2]
[401879454,1768393842532,-3500.0,0.0001656,2]
[401879455,1768393842542,-92339.95039253,0.00017,2]
[401879456,1768393842552,-4000.0,0.00017108,2]
[401879457,1768393842571,-179.5,0.00017136,2]
[401879458,1768393842583,-1000.0,0.00017356,2]
[401879459,1768393842594,-791.0,0.00017356,2]
[401879460,1768393842604,-718.61756749,0.0001738,2]
[401879461,1768393842615,-160.0,0.0001748,2]
[401879462,1768393842625,-1041.66666667,0.0001748,2]
[401879463,1768393842635,-2137.48177052,0.000176,2]
[401879464,1768393842646,-2000.0,0.00017644,7]
[401879465,1768393842656,-4500.0,0.00017656,2]
[401879466,1768393842667,-150512.98381193,0.00018,2]
[401879467,1768393842677,-39769.91253842,0.00018,5]
[401879468,1768393842687,-5000.0,0.00018204,2]
[401879469,1768393842698,-712.833248,0.00018493,2]
[401879470,1768393842708,-179.5,0.00018532,2]
[401879471,1768393842720,-5500.0,0.00018752,2]
[401879472,1768393842731,-719.46252085,0.000189,5]
[401879473,1768393842742,-303.10001603,0.000189,2]
[401879474,1768393842751,-168.3888056,0.00018928,2]
[401879475,1768393842761,-174.61919141,0.00018928,2]
[401879476,1768393842771,-181.08010149,0.00018928,2]
[401879477,1768393842781,-187.78006525,0.00018928,2]
[401879478,1768393842792,-2230.315306,0.00018928,2]
[401879479,1768393842802,-194.72792766,0.00018928,2]
[401879480,1768393842811,-201.93286099,0.00018928,2]
[401879481,1768393842822,-209.40437684,0.00018928,2]
[401879482,1768393842831,-217.15233878,0.00018928,2]
[401879483,1768393842842,-225.18697532,0.00018928,2]
[401879484,1768393842852,-233.51889341,0.00018928,2]
[401879485,1768393842862,-242.15909246,0.00018928,2]
[401879486,1768393842872,-461.67526834,0.00018928,2]
[401879487,1768393842882,-251.11897888,0.00018928,2]
[401879488,1768393842892,-260.4103811,0.00018928,2]
[401879489,1768393842902,-270.0455652,0.00018928,2]
[401879490,1768393842912,-280.03725112,0.00018928,2]
[401879491,1768393842922,-290.39862941,0.00018928,2]
[401879492,1768393842932,-301.1433787,0.00018928,2]
[401879493,1768393842942,-2000.0,0.00018959,7]
[401879494,1768393842952,-17969.48957745,0.00019,2]
[401879495,1768393842963,-2603.49,0.00019,2]
[401879496,1768393842973,-303.10001603,0.00019089,2]
[401879497,1768393842983,-1000.0,0.00019092,2]
[401879498,1768393842994,-1000.0,0.00019092,2]
[401879499,1768393843003,-845.2254,0.00019178,2]
[401879500,1768393843013,-507.1352,0.00019178,2]
[401879501,1768393843023,-227.08932885,0.00019178,2]
[401879502,1768393843034,-8068.09,0.000192,2]
[401879503,1768393843045,-188.68,0.000192,2]
[401879504,1768393843055,-187.19,0.000192,2]
[401879505,1768393843070,-1086.58,0.000192,2]
[401879506,1768393843081,-500.99801519,0.00019205,5]
[401879507,1768393843091,-303.10001603,0.00019278,2]
[401879508,1768393843102,-6000.0,0.000193,2]
[401879509,1768393843112,-793.82173153,0.0001938,2]
[401879510,1768393843122,-303.10001603,0.00019467,2]
[401879511,1768393843133,-2312.83697232,0.00019476,2]
[401879513,1768393843143,-541.82851916,0.00019476,2]
[401879515,1768393843154,-303.10001603,0.00019656,2]
[401879516,1768393843164,-454.65002405,0.00019845,4]
[401879519,1768393843174,-1000.0,0.00019848,2]
[401879521,1768393843184,-179.5,0.00019928,2]
[401879523,1768393843193,-845.2254,0.0002,4]
[401879525,1768393843204,-151.55000802,0.0002,2]
[401879526,1768393843214,-668.88471487,0.0002,2]
[401879527,1768393843224,-14703.49659754,0.0002,2]
[401879528,1768393843234,-371.66132516,0.0002,2]
[401879529,1768393843244,-200181.45649297,0.0002,2]
[401879530,1768393843255,-163524.2208646,0.0002,7]
[401879531,1768393843265,-804.32909815,0.0002,2]
[401879532,1768393843276,-77401.68985457,0.0002,2]
[401879533,1768393843287,-23000.0,0.0002,2]
[401879534,1768393843298,-82346.01286359,0.0002,7]
[401879535,1768393843308,-202.7514447,0.0002,2]
[401879536,1768393843318,-504.32904356,0.0002,2]
[401879537,1768393843328,-1671.0,0.0002,10]
[401879538,1768393843338,-2398.4119403,0.00020024,2]
[401879539,1768393843348,-454.65002405,0.00020034,4]
[401879540,1768393843359,-503.71435101,0.0002013,2]
[401879541,1768393843477,-455.59513863,0.00020223,4]
[401879542,1768393843490,-2000.0,0.00020274,7]
[401879543,1768393843499,-2487.15318209,0.00020572,2]
[401879544,1768393843510,-1389.51235473,0.0002061,2]
[401879545,1768393843520,-256.51440562,0.000209,2]
[401879546,1768393843533,-277.38884084,0.00021,2]
[401879547,1768393843543,-50000.0,0.00021,2]
[401879548,1768393843553,-1000.0,0.00021001,2]
[401879549,1768393843563,-1000.0,0.00021001,2]
[401879550,1768393843573,-579.0,0.00021001,2]
[401879551,1768393843583,-2579.17784983,0.0002112,2]
[401879552,1768393843593,-179.5,0.00021325,2]
[401879553,1768393843603,-869.02589557,0.0002138,2]
[401879554,1768393843613,-1040.0176033,0.000215,2]
[401879555,1768393843623,-12864.48059022,0.000215,2]
[401879556,1768393843634,-2000.0,0.00021589,7]
[401879557,1768393843643,-2674.60743027,0.00021668,2]
[401879558,1768393843652,-712.833248,0.00021918,2]
[401879559,1768393843663,-568.82796279,0.0002196,10]
[401879560,1768393843672,-1086.58,0.00022,14]
[401879561,1768393843683,-196.96455915,0.00022102,2]
[401879562,1768393843691,-2773.56790519,0.00022216,2]
[401879563,1768393843701,-200.0,0.00022466,2]
[401879564,1768393843710,-1033.75044732,0.000225,2]
[401879565,1768393843720,-179.5,0.00022721,2]
[401879566,1768393843729,-2000.0,0.00022904,7]
[401879567,1768393843739,-250.0,0.00023014,2]
[401879568,1768393843748,-730.42,0.000231,7]
[401879569,1768393843758,-1000.0,0.00023101,10]
[401879570,1768393843768,-1000.0,0.00023101,10]
[401879571,1768393843777,-1000.0,0.00023101,10]
[401879572,1768393843788,-740.75,0.000232,7]
[401879573,1768393843797,-157.32070626,0.00023232,5]
[401879574,1768393843807,-944.23005961,0.0002338,2]
[401879575,1768393843819,-210.92385342,0.00023562,2]
[401879576,1768393843828,-28967.02373672,0.00024,2]
[401879577,1768393843838,-1931.32974169,0.00024,60]
[401879578,1768393843848,-1736.447596,0.00024,2]
[401879579,1768393843857,-465.90719096,0.00024,2]
[401879580,1768393843867,-1041.66666667,0.00024,7]
[401879581,1768393843877,-179.5,0.00024117,2]
[401879582,1768393843889,-687.23785957,0.00024121,2]
[401879583,1768393843899,-511930.29645519,0.00024142,2]
[401879584,1768393843910,-50340.12423014,0.000242,2]
[401879585,1768393843919,-2000.0,0.00024219,7]
[401879586,1768393843930,-378.0,0.00024461,2]
[401879587,1768393843939,-1126.0,0.000245,5]
[401879589,1768393843949,-314.76515084,0.00024569,2]
[401879590,1768393843958,-419.68686778,0.00024569,2]
[401879591,1768393843967,-209.84343389,0.00024569,2]
[401879592,1768393843977,-156856.39382059,0.0002465,2]
[401879593,1768393843987,-514.22907277,0.0002465,2]
[401879594,1768393843996,-151.0,0.0002465,2]
[401879595,1768393844005,-155.398666,0.0002465,2]
[401879598,1768393844014,-151.0,0.0002465,2]
[401879601,1768393844023,-151.0,0.0002465,2]
[401879604,1768393844034,-169.388304,0.0002465,2]
[401879606,1768393844043,-151.0,0.0002465,2]
[401879609,1768393844053,-151.0,0.0002465,2]
[401879610,1768393844063,-240.635546,0.0002465,2]
[401879612,1768393844072,-1102.85523,0.0002465,2]
[401879613,1768393844081,-151.0,0.0002465,2]
[401879614,1768393844091,-1102.85523,0.0002465,2]
[401879615,1768393844100,-1102.85523,0.0002465,2]
[401879616,1768393844109,-1102.85523,0.0002465,2]
[401879617,1768393844119,-151.0,0.0002465,2]
[401879619,1768393844128,-403.017468,0.0002465,2]
[401879620,1768393844137,-403.017468,0.0002465,2]
[401879621,1768393844146,-403.017468,0.0002465,2]
[401879622,1768393844156,-403.017468,0.0002465,2]
[401879623,1768393844165,-151.0,0.0002465,2]
[401879624,1768393844175,-151.0,0.0002465,2]
[401879625,1768393844185,-151.0,0.0002465,2]
[401879626,1768393844195,-151.0,0.0002465,2]
[401879627,1768393844205,-151.0,0.0002465,2]
[401879628,1768393844214,-16836.12060946,0.00024774,2]
[401879629,1768393844224,-2541.07484686,0.000249,2]
[401879630,1768393844233,-558728.023492,0.000249,2]
[401879631,1768393844243,-20000.0,0.00025,4]
[401879632,1768393844252,-241.0,0.00025,2]
[401879633,1768393844262,-36426.05288557,0.00025,15]
[401879634,1768393844271,-1086.00529944,0.00025,2]
[401879635,1768393844281,-2675.92587353,0.00025,2]
[401879636,1768393844292,-24014.36707181,0.00025,2]
[401879637,1768393845032,-500.0,0.00013698,2]
[401879638,1768393845042,-500.0,0.00013698,2]
[401879639,1768393845052,-500.0,0.00013698,2]
[401879640,1768393845062,-500.0,0.00013698,2]
[401879641,1768393845071,-500.0,0.00013698,2]
[401879642,1768393845081,-2472.80355642,0.0001451,2]
[401879643,1768393845660,-2527.19644358,0.0001451,2]
[401879644,1768393845670,-5000.0,0.00017412,2]
[401879645,1768393845681,-5000.0,0.00018863,2]
[401879646,1768393845692,-378.0,0.00023841,2]
[401879647,1768393845702,-378.0,0.00024074,2]
[401879648,1768393845712,-65985.63292819,0.00025,2]
[401879649,1768393845722,-10364.0,0.00025,2]
[401879650,1768393845731,-500.0,0.00025,2]
[401879651,1768393845740,-2611.93964778,0.00025,2]
[401879652,1768393845750,-760.01897251,0.00025,2]
[401879653,1768393845759,-160.03118063,0.00025,2]
[401879654,1768393845769,-800.0,0.00025075,2]
[401879655,1768393845778,-1000.0,0.000251,7]
[401879656,1768393845788,-580.66727248,0.000252,5]
[401879657,1768393845798,-250.0,0.00025205,2]
[401879658,1768393845807,-712.833248,0.00025342,2]
[401879659,1768393845817,-1019.43422365,0.0002538,2]
[401879660,1768393845826,-1000.0,0.00025411,10]
[401879661,1768393845836,-1000.0,0.00025411,10]
[401879662,1768393845846,-1000.0,0.00025411,10]
[401879663,1768393845855,-715.0,0.00025411,10]
[401879664,1768393845865,-900.0,0.00025469,3]
[401879665,1768393845875,-307.0,0.00025479,14]
[401879666,1768393845884,-8068.09,0.000255,2]
[401879667,1768393845894,-2356.0,0.000255,120]
[401879668,1768393845903,-478.0,0.000255,120]
[401879669,1768393845912,-1414.0,0.000255,120]
[401879670,1768393845922,-287.0,0.000255,120]
[401879671,1768393845931,-1000.0,0.000255,2]
[401879672,1768393845940,-179.5,0.00025513,2]
[401879673,1768393845950,-2000.0,0.00025534,7]
[401879674,1768393845959,-1086.58,0.000257,14]
[401879675,1768393845969,-2541.07484684,0.00025733,2]
[401879676,1768393845978,-168.26957802,0.00025733,2]
[401879677,1768393845987,-176.24047681,0.00025744,21]
[401879678,1768393845997,-350.0,0.00025753,2]
[401879679,1768393846006,-641.0,0.00025754,120]
[401879680,1768393846017,-6803.24817253,0.00026,10]
[401879681,1768393846029,-530.08019871,0.00026,2]
[401879682,1768393846039,-5828.88826338,0.00026,30]
[401879683,1768393846049,-19900.0,0.00026,2]
[401879684,1768393846061,-1041.66666667,0.00026,10]
[401879685,1768393846072,-746.98816634,0.00026,120]
[401879686,1768393846081,-161.0,0.00026,5]
[401879687,1768393846091,-4058.91,0.00026027,2]
[401879688,1768393846101,-194.72949231,0.0002616,2]
[401879689,1768393846110,-450.0,0.00026301,2]
[401879691,1768393846119,-200.0,0.0002654,14]
[401879693,1768393846129,-2541.07484684,0.00026565,2]
[401879695,1768393846138,-173.0,0.00026575,14]
[401879696,1768393846148,-800.0,0.00026595,7]
[401879697,1768393846157,-2356.0,0.00026775,120]
[401879698,1768393846167,-478.0,0.00026775,120]
[401879699,1768393846176,-1414.0,0.00026775,120]
[401879700,1768393846186,-287.0,0.00026775,120]
[401879701,1768393846196,-800.0,0.00026808,2]
[401879702,1768393846207,-550.0,0.00026849,2]
[401879703,1768393846217,-2000.0,0.00026849,7]
[401879704,1768393846227,-179.5,0.00026909,2]
[401879705,1768393846237,-600.0,0.00027,14]
[401879706,1768393846247,-3000.0,0.00027,120]
[401879707,1768393846256,-641.0,0.00027042,120]
[401879708,1768393846267,-7021.1038353,0.00027198,2]
[401879709,1768393846277,-200.0,0.00027334,30]
[401879710,1768393846286,-200.0,0.00027334,30]
[401879711,1768393846297,-200.0,0.00027334,30]
[401879712,1768393846306,-176.24047681,0.00027367,23]
[401879713,1768393846316,-1094.63838769,0.0002738,2]
[401879714,1768393846325,-1975.99083678,0.0002739,120]
[401879715,1768393846335,-394.15965016,0.0002739,7]
[401879717,1768393846344,-1145.4069738,0.00027397,120]
[401879718,1768393846354,-378.48221474,0.00027397,3]
[401879719,1768393846363,-212.64966449,0.00027397,5]
[401879720,1768393846375,-300.0,0.00027397,2]
[401879721,1768393846385,-300.0,0.00027397,2]
[401879722,1768393846394,-300.0,0.00027397,2]
[401879723,1768393846403,-300.0,0.00027397,2]
[401879724,1768393846413,-300.0,0.00027397,2]
[401879725,1768393846422,-300.0,0.00027397,2]
[401879726,1768393846432,-300.0,0.00027397,2]
[401879727,1768393846441,-300.0,0.00027397,2]
[401879728,1768393846450,-2541.07484684,0.00027398,2]
[401879729,1768393846460,-740.75,0.000274,7]
[401879730,1768393846471,-1524.22564047,0.000275,120]
[401879731,1768393846481,-45974.0104959,0.000275,2]
[401879732,1768393846492,-4058.91,0.00027671,4]
[401879734,1768393846502,-205.0,0.00027671,14]
[401879735,1768393846513,-1000.0,0.00027777,5]
[401879736,1768393846523,-167.12486556,0.00027858,5]
[401879737,1768393846532,-250.0,0.00027945,5]
[401879738,1768393846544,-250.0,0.00027945,5]
[401879739,1768393846554,-1000.0,0.00027952,30]
[401879741,1768393846564,-1000.0,0.00027952,30]
[401879742,1768393846573,-1000.0,0.00027952,30]
[401879743,1768393846583,-8068.09,0.00028,2]
[401879744,1768393846592,-200.0,0.00028,120]
[401879745,1768393846603,-15332.50098657,0.00028,2]
[401879746,1768393846612,-2583.99413959,0.00028,2]
[401879748,1768393846622,-520.63777123,0.00028,2]
[401879749,1768393846631,-1257.80356366,0.00028,120]
[401879750,1768393846640,-3000.0,0.00028,120]
[401879751,1768393846649,-2356.0,0.00028114,120]
[401879752,1768393846659,-478.0,0.00028114,120]
[401879753,1768393846669,-1414.0,0.00028114,120]
[401879755,1768393846677,-287.0,0.00028114,120]
[401879756,1768393846687,-2000.0,0.00028164,7]
[401879757,1768393846696,-2541.07484684,0.00028231,2]
[401879758,1768393846705,-179.5,0.00028305,5]
[401879759,1768393846714,-641.0,0.00028394,120]
[401879760,1768393846723,-1206.4488989,0.0002849,120]
[401879761,1768393846732,-350.0,0.00028493,5]
[401879762,1768393846742,-350.0,0.00028493,5]
[401879763,1768393846751,-213785.71144258,0.000285,7]
[401879764,1768393846760,-161.506342,0.000285,7]
[401879765,1768393846769,-151.0,0.000285,2]
[401879766,1768393846778,-151.0,0.000285,7]
[401879767,1768393846789,-151.0,0.000285,7]
[401879768,1768393846798,-1102.85523,0.000285,7]
[401879769,1768393846808,-151.0,0.000285,7]
[401879770,1768393846817,-1102.85523,0.000285,7]
[401879771,1768393846827,-1102.85523,0.000285,7]
[401879772,1768393846836,-1102.85523,0.000285,7]
[401879773,1768393846845,-285.638493,0.000285,7]
[401879774,1768393846854,-403.017468,0.000285,7]
[401879775,1768393846863,-403.017468,0.000285,7]
[401879777,1768393846872,-403.017468,0.000285,7]
[401879779,1768393846882,-403.017468,0.000285,7]
[401879780,1768393846891,-151.0,0.000285,7]
[401879781,1768393846900,-151.0,0.000285,7]
[401879782,1768393846909,-151.0,0.000285,7]
[401879783,1768393846919,-151.0,0.000285,7]
[401879784,1768393846928,-151.0,0.000285,7]
[401879785,1768393846938,-728.0,0.00028536,3]
[401879786,1768393846947,-9119.3304836,0.00028629,2]
[401879787,1768393846957,-2000.0,0.00028706,10]
[401879788,1768393846967,-2000.0,0.00028714,10]
[401879789,1768393846976,-2000.0,0.00028723,10]
[401879790,1768393846986,-2000.0,0.00028732,10]
[401879791,1768393846995,-2000.0,0.00028741,10]
[401879792,1768393847004,-2000.0,0.0002875,10]
[401879793,1768393847013,-2000.0,0.00028758,10]
[401879794,1768393847023,-363.74855631,0.0002876,120]
[401879795,1768393847032,-164.44294239,0.0002876,120]
[401879796,1768393847044,-180.0,0.00028767,14]
[401879797,1768393847053,-712.833248,0.00028767,60]
[401879798,1768393847063,-2000.0,0.00028767,10]
[401879799,1768393847073,-2000.0,0.00028776,10]
[401879800,1768393847083,-2000.0,0.00028785,10]
[401879801,1768393847093,-2000.0,0.00028794,10]
[401879802,1768393847103,-1086.58,0.000288,14]
[401879803,1768393847113,-2000.0,0.00028802,10]
[401879804,1768393847123,-2000.0,0.00028811,10]
[401879805,1768393847132,-2000.0,0.0002882,10]
[401879806,1768393847143,-2000.0,0.00028829,10]
[401879807,1768393847153,-2000.0,0.00028838,10]
[401879808,1768393847163,-2000.0,0.00028846,10]
[401879809,1768393847172,-2000.0,0.00028855,10]
[401879810,1768393847182,-728.0,0.00028856,3]
[401879811,1768393847193,-2000.0,0.00028864,10]
[401879812,1768393847203,-2000.0,0.00028873,10]
[401879813,1768393847213,-2000.0,0.00028882,10]
[401879814,1768393847223,-2000.0,0.0002889,10]
[401879815,1768393847233,-2000.0,0.00028899,10]
[401879816,1768393847242,-176.24047681,0.00028989,25]
[401879817,1768393847252,-200.0,0.00029,120]
[401879818,1768393847261,-1041.66666667,0.00029,10]
[401879819,1768393847271,-1041.66666667,0.00029,7]
[401879820,1768393847281,-3000.0,0.00029,120]
[401879821,1768393847292,-12041.69022047,0.0002902,2]
[401879822,1768393847302,-450.0,0.00029041,5]
[401879823,1768393847313,-281.07735056,0.00029041,5]
[401879824,1768393847322,-2541.07484684,0.00029063,2]
[401879825,1768393847332,-728.0,0.00029176,3]
[401879826,1768393847341,-8551.86594239,0.00029232,2]
[401879827,1768393847350,-153.0,0.00029233,30]
[401879828,1768393847360,-4058.91,0.00029315,6]
[401879829,1768393847370,-1169.84255173,0.0002938,2]
[401879830,1768393847379,-2000.0,0.000294,10]
[401879831,1768393847389,-1351.0,0.00029452,120]
[401879832,1768393847399,-500.0,0.00029452,60]
[401879833,1768393847408,-500.0,0.00029452,60]
[401879834,1768393847418,-500.0,0.00029452,60]
[401879835,1768393847428,-500.0,0.00029452,60]
[401879836,1768393847438,-500.0,0.00029452,60]
[401879837,1768393847447,-500.0,0.00029452,60]
[401879838,1768393847457,-500.0,0.00029452,60]
[401879839,1768393847469,-500.0,0.00029452,60]
[401879840,1768393847478,-500.0,0.00029452,60]
[401879841,1768393847491,-500.0,0.00029452,60]
[401879842,1768393847500,-500.0,0.00029452,60]
[401879843,1768393847511,-500.0,0.00029452,60]
[401879844,1768393847520,-2000.0,0.00029479,7]
[401879845,1768393847530,-728.0,0.00029496,3]
[401879846,1768393847542,-532.38769963,0.000295,120]
[401879847,1768393847552,-3772.09967674,0.000295,2]
[401879848,1768393847562,-2356.0,0.00029519,120]
[401879849,1768393847572,-478.0,0.00029519,120]
[401879850,1768393847581,-1414.0,0.00029519,120]
[401879851,1768393847591,-287.0,0.00029519,120]
[401879852,1768393847601,-475.0,0.0002958,120]
[401879853,1768393847611,-475.0,0.0002958,120]
[401879854,1768393847621,-475.0,0.0002958,120]
[401879855,1768393847631,-475.0,0.0002958,120]
[401879856,1768393847642,-475.0,0.0002958,120]
[401879857,1768393847652,-475.0,0.0002958,120]
[401879858,1768393847663,-475.0,0.0002958,120]
[401879859,1768393847673,-475.0,0.0002958,120]
[401879860,1768393847683,-475.0,0.0002958,120]
[401879861,1768393847693,-475.0,0.0002958,120]
[401879862,1768393847705,-475.0,0.0002958,120]
[401879863,1768393847721,-475.0,0.0002958,120]
[401879864,1768393847942,-475.0,0.0002958,120]
[401879865,1768393847966,-475.0,0.0002958,120]
[401879866,1768393847975,-475.0,0.0002958,120]
[401879867,1768393847985,-475.0,0.0002958,120]
[401879868,1768393847994,-475.0,0.0002958,120]
[401879869,1768393848004,-475.0,0.0002958,120]
[401879870,1768393848013,-475.0,0.0002958,120]
[401879871,1768393848023,-475.0,0.0002958,120]
[401879872,1768393848032,-475.0,0.0002958,120]
[401879873,1768393848043,-475.0,0.0002958,120]
[401879874,1768393848052,-475.0,0.0002958,120]
[401879875,1768393848061,-475.0,0.0002958,120]
[401879876,1768393848071,-475.0,0.0002958,120]
[401879877,1768393848080,-475.0,0.0002958,120]
[401879878,1768393848089,-475.0,0.0002958,120]
[401879879,1768393848099,-475.0,0.0002958,120]
[401879880,1768393848109,-475.0,0.0002958,120]
[401879881,1768393848118,-475.0,0.0002958,120]
[401879882,1768393848133,-475.0,0.0002958,120]
[401879883,1768393848142,-475.0,0.0002958,120]
[401879884,1768393848152,-475.0,0.0002958,120]
[401879885,1768393848162,-475.0,0.0002958,120]
[401879886,1768393848172,-475.0,0.0002958,120]
[401879887,1768393848182,-475.0,0.0002958,120]
[401879888,1768393848191,-475.0,0.0002958,120]
[401879889,1768393848201,-1351.0,0.00029589,120]
[401879890,1768393848211,-500.0,0.00029589,60]
[401879891,1768393848220,-500.0,0.00029589,60]
[401879892,1768393848230,-500.0,0.00029589,60]
[401879893,1768393848239,-500.0,0.00029589,60]
[401879894,1768393848249,-500.0,0.00029589,60]
[401879895,1768393848259,-500.0,0.00029589,60]
[401879896,1768393848269,-500.0,0.00029589,60]
[401879897,1768393848279,-500.0,0.00029589,60]
[401879898,1768393848287,-500.0,0.00029589,60]
[401879899,1768393848296,-500.0,0.00029589,60]
[401879900,1768393848306,-500.0,0.00029589,60]
[401879901,1768393848315,-500.0,0.00029589,60]
[401879902,1768393848326,-283.83301289,0.00029589,60]
[401879903,1768393848335,-550.0,0.00029589,5]
[401879904,1768393848344,-2000.0,0.00029595,120]
[401879905,1768393848353,-2000.0,0.00029595,120]
[401879906,1768393848363,-2000.0,0.00029595,120]
[401879907,1768393848372,-2000.0,0.00029595,120]
[401879908,1768393848382,-2000.0,0.00029595,120]
[401879909,1768393848390,-2000.0,0.00029595,120]
[401879910,1768393848400,-2000.0,0.00029595,120]
[401879911,1768393848408,-2000.0,0.00029595,120]
[401879912,1768393848418,-2000.0,0.00029595,120]
[401879913,1768393848428,-2000.0,0.00029595,120]
[401879914,1768393848437,-2000.0,0.00029595,120]
[401879915,1768393848446,-2000.0,0.00029595,120]
[401879916,1768393848455,-2000.0,0.00029595,120]
[401879917,1768393848465,-2000.0,0.00029595,120]
[401879918,1768393848475,-2000.0,0.00029595,120]
[401879919,1768393848485,-2000.0,0.00029595,120]
[401879920,1768393848496,-996.312,0.00029595,120]
[401879921,1768393848506,-200.0,0.000296,120]
[401879922,1768393848517,-200.0,0.000296,120]
[401879923,1768393848527,-475.0,0.00029652,120]
[401879924,1768393848537,-2840.3730988,0.00029689,2]
[401879925,1768393848547,-172505.73609277,0.00029695,2]
[401879926,1768393848648,-743.00982179,0.00027397,30]
[401879927,1768393862696,300.0,9.369e-05,2]
[401879928,1768393903347,222.297,9.183e-05,2]
[401879929,1768393922421,300.0,9.369e-05,2]
[401879930,1768393959388,518.40028803,0.000254,120]
[401879931,1768393968436,-225.77612013,9.369e-05,2]
[401879932,1768393968607,-5702.42770757,9.37e-05,2]
[401879933,1768393971583,-10000.01,9.37e-05,2]
[401879934,1768393971852,-10000.01,9.37e-05,2]
[401879935,1768393972055,-10000.01,9.37e-05,2]
[401879936,1768393984062,-300.0,9.369e-05,2]
[401879937,1768393984097,-9400.01,9.37e-05,2]
[401879938,1768393984598,-10000.01,9.37e-05,2]